[Event "1st SOA-GM Festival 2024"]
[Site "Bhubaneswar"]
[Date "2024.02.01"]
[Round "4.18"]
[White "John Veny Akkarakaran"]
[Black "Roy Chowdhury, Saptarshi"]
[Result "1/2-1/2"]
[WhiteElo "2112"]
[BlackElo "2233"]
[PlyCount "169"]
[EventDate "2024.02.01"]
[EventType "swiss"]
[EventCountry "IND"]
[TimeControl "5400+30"]

1. e4 {[%emt 0:02:13]} b6 {[%emt 0:02:06]} 2. d4 {[%emt 0:02:00]} Bb7 {[%emt 0:00:04]} 3. Nc3 {[%emt 0:01:33]} e6 {[%emt 0:00:06]} 4. Nf3 {[%emt 0:03:52]} d6 {[%emt 0:00:39]} 5. Bd3 {[%emt 0:01:38]} Nd7 {[%emt 0:00:06]} 6. O-O {[%emt 0:00:57]} g6 {[%emt 0:00:05]} 7. Bf4 {[%emt 0:01:36]} Bg7 {[%emt 0:00:07]} 8. Qd2 {[%emt 0:02:59]} h6 {[%emt 0:00:36]} 9. h4 {[%emt 0:06:53]} a6 {[%emt 0:00:48]} 10. a4 {[%emt 0:00:28]} Ne7 {[%emt 0:03:47]} 11. Rfe1 {[%emt 0:11:05]} e5 {[%emt 0:07:41]} 12. dxe5 {[%emt 0:04:27]} Nxe5 {[%emt 0:00:51]} 13. Nxe5 {[%emt 0:07:47]} dxe5 {[%emt 0:00:48]} 14. Bg3 {[%emt 0:03:00]} O-O {[%emt 0:01:27]} 15. Rad1 {[%emt 0:02:04]} Nc6 {[%emt 0:06:05]} 16. Nd5 {[%emt 0:04:31]} Nd4 {[%emt 0:02:00]} 17. c3 {[%emt 0:04:37]} Ne6 {[%emt 0:00:50]} 18. Qe3 {[%emt 0:05:27]} Qe8 {[%emt 0:05:25]} 19. Bc2 {[%emt 0:04:03]} Rd8 {[%emt 0:07:24]} 20. Qf3 {[%emt 0:07:44]} Rd6 {[%emt 0:13:59]} 21. b4 {[%emt 0:05:17]} Qd8 {[%emt 0:01:23]} 22. Bb3 {[%emt 0:01:48]} Kh8 {[%emt 0:02:28]} 23. Ne3 {[%emt 0:03:10]} Rxd1 {[%emt 0:06:42]} 24. Rxd1 {[%emt 0:13:21]} Qe7 {[%emt 0:00:15]} 25. Bd5 {[%emt 0:00:00]} c6 {[%emt 0:01:41]} 26. Bb3 {[%emt 0:00:00]} b5 {[%emt 0:04:42]} 27. a5 {[%emt 0:00:00]} h5 {[%emt 0:00:31]} 28. Qe2 {[%emt 0:00:00]} Bc8 {[%emt 0:02:22]} 29. Qd2 {[%emt 0:00:00]} Rd8 {[%emt 0:00:19]} 30. Qc2 {[%emt 0:00:00]} Rxd1+ {[%emt 0:00:19]} 31. Qxd1 {[%emt 0:00:00]} Kg8 {[%emt 0:00:30]} 32. Qd2 {[%emt 0:00:00]} Nf4 {[%emt 0:02:23]} 33. Nf1 {[%emt 0:00:44]} Bh6 {[%emt 0:03:51]} 34. Qd1 {[%emt 0:00:45]} Bg7 {[%emt 0:00:21]} 35. Qd2 {[%emt 0:00:49]} Ne6 {[%emt 0:02:55]} 36. Nh2 {[%emt 0:00:00]} Kh8 {[%emt 0:00:00]} 37. Nf1 {[%emt 0:00:26]} Kg8 {[%emt 0:01:00]} 38. Nh2 {[%emt 0:00:00]} Kh8 {[%emt 0:00:00]} 39. Nf1 {[%emt 0:01:00]} Kg8 {[%emt 0:01:00]} 40. Nh2 {[%emt 0:01:47]} Nf4 {[%emt 0:06:28]} 41. Nf3 {[%emt 0:00:50]} Bh6 {[%emt 0:00:10]} 42. Bxf4 {[%emt 0:00:39]} Bxf4 {[%emt 0:00:05]} 43. Qd3 {[%emt 0:00:19]} Bg4 {[%emt 0:00:17]} 44. g3 {[%emt 0:00:30]} Bh6 {[%emt 0:00:18]} 45. Kg2 {[%emt 0:00:43]} Kg7 {[%emt 0:02:12]} 46. Nh2 {[%emt 0:00:19]} Qd7 {[%emt 0:00:24]} 47. Qxd7 {[%emt 0:01:01]} Bxd7 {[%emt 0:00:01]} 48. Nf1 {[%emt 0:01:27]} Bc1 {[%emt 0:01:09]} 49. Ne3 {[%emt 0:00:05]} Bd2 {[%emt 0:00:28]} 50. Nd1 {[%emt 0:00:07]} f5 {[%emt 0:00:28]} 51. Kf3 {[%emt 0:00:25]} Kf6 {[%emt 0:00:52]} 52. Ke2 {[%emt 0:00:23]} Bc1 {[%emt 0:00:08]} 53. exf5 {[%emt 0:00:51]} gxf5 {[%emt 0:00:50]} 54. Kd3 {[%emt 0:00:26]} f4 {[%emt 0:00:53]} 55. Kc2 {[%emt 0:00:46]} fxg3 {[%emt 0:00:05]} 56. fxg3 {[%emt 0:00:09]} Bh6 {[%emt 0:00:05]} 57. Kd3 {[%emt 0:00:21]} Bf5+ {[%emt 0:00:44]} 58. Ke2 {[%emt 0:00:04]} Bf8 {[%emt 0:04:18]} 59. Ne3 {[%emt 0:00:38]} Bd7 {[%emt 0:00:00]} 60. Nd1 {[%emt 0:00:22]} Bf5 {[%emt 0:01:00]} 61. Ne3 {[%emt 0:00:38]} Bg6 {[%emt 0:02:30]} 62. Ng2 {[%emt 0:01:21]} Bd6 {[%emt 0:00:59]} 63. Ba2 {[%emt 0:00:34]} Bf5 {[%emt 0:02:45]} 64. Ne3 {[%emt 0:00:12]} Bg6 {[%emt 0:00:37]} 65. Ng2 {[%emt 0:00:04]} Ke7 {[%emt 0:00:05]} 66. Bb3 {[%emt 0:00:47]} Kf6 {[%emt 0:00:47]} 67. Ba2 {[%emt 0:00:13]} Bf5 {[%emt 0:00:00]} 68. Ne3 {[%emt 0:00:12]} Bd7 {[%emt 0:00:00]} 69. Ng2 {[%emt 0:01:29]} Bg4+ {[%emt 0:00:00]} 70. Kf2 {[%emt 0:00:56]} e4 {[%emt 0:00:16]} 71. Bb1 {[%emt 0:00:34]} Be5 {[%emt 0:00:52]} 72. Bxe4 {[%emt 0:00:14]} Bxc3 {[%emt 0:00:10]} 73. Bxc6 {[%emt 0:00:07]} Bxb4 {[%emt 0:00:04]} 74. Bb7 {[%emt 0:00:31]} Bxa5 {[%emt 0:00:04]} 75. Bxa6 {[%emt 0:00:03]} b4 {[%emt 0:00:11]} 76. Bc4 {[%emt 0:01:27]} Bb6+ {[%emt 0:00:33]} 77. Ke1 {[%emt 0:00:06]} Bc7 {[%emt 0:00:18]} 78. Nf4 {[%emt 0:00:45]} Bxf4 {[%emt 0:00:19]} 79. gxf4 {[%emt 0:00:00]} Kf5 {[%emt 0:03:47]} 80. Kd2 {[%emt 0:00:39]} Bf3 {[%emt 0:03:51]} 81. Kc2 {[%emt 0:00:28]} Kxf4 {[%emt 0:01:28]} 82. Kb3 {[%emt 0:00:28]} Kg4 {[%emt 0:00:10]} 83. Kxb4 {[%emt 0:00:22]} Kxh4 {[%emt 0:00:05]} 84. Bf7 {[%emt 0:00:02]} Kg3 {[%emt 0:00:05]} 85. Bxh5 {[%emt 0:00:03]} 1/2-1/2

[Event "1st SOA-GM Festival 2024"]
[Site "Bhubaneswar"]
[Date "2024.02.01"]
[Round "4.19"]
[White "Nikhil Magizhnan"]
[Black "Frayna, Janelle Mae"]
[Result "1-0"]
[WhiteElo "1994"]
[BlackElo "2197"]
[PlyCount "95"]
[EventDate "2024.02.01"]
[EventType "swiss"]
[EventCountry "IND"]
[TimeControl "5400+30"]

1. d4 {[%emt 0:00:12]} d5 {[%emt 0:00:56]} 2. c4 {[%emt 0:00:14]} e6 {[%emt 0:00:04]} 3. Nf3 {[%emt 0:00:12]} Nf6 {[%emt 0:00:06]} 4. g3 {[%emt 0:00:08]} Be7 {[%emt 0:00:34]} 5. Bg2 {[%emt 0:00:11]} O-O {[%emt 0:00:27]} 6. O-O {[%emt 0:00:11]} c6 {[%emt 0:01:37]} 7. Qd3 {[%emt 0:03:31]} b6 {[%emt 0:01:26]} 8. b3 {[%emt 0:00:08]} Nbd7 {[%emt 0:04:07]} 9. Nc3 {[%emt 0:06:18]} Ba6 {[%emt 0:02:53]} 10. Bf4 {[%emt 0:04:22]} Rc8 {[%emt 0:06:08]} 11. Rfd1 {[%emt 0:01:20]} Ba3 {[%emt 0:03:40]} 12. Rab1 {[%emt 0:03:43]} Qe7 {[%emt 0:11:12]} 13. e4 {[%emt 0:05:37]} h6 {[%emt 0:07:18]} 14. e5 {[%emt 0:19:09]} Ne8 {[%emt 0:01:48]} 15. h4 {[%emt 0:00:26]} Nc7 {[%emt 0:00:16]} 16. Ne1 {[%emt 0:09:19]} b5 {[%emt 0:02:17]} 17. cxd5 {[%emt 0:02:58]} cxd5 {[%emt 0:04:11]} 18. Qd2 {[%emt 0:05:20]} b4 {[%emt 0:04:05]} 19. Na4 {[%emt 0:02:26]} Bb5 {[%emt 0:03:47]} 20. Nc2 {[%emt 0:02:55]} Na8 {[%emt 0:06:28]} 21. Nxa3 {[%emt 0:02:17]} bxa3 {[%emt 0:00:07]} 22. Nc3 {[%emt 0:00:12]} a6 {[%emt 0:07:49]} 23. Rbc1 {[%emt 0:01:44]} Nb8 {[%emt 0:30:44]} 24. Nb1 {[%emt 0:03:26]} Nc6 {[%emt 0:00:00]} 25. Rc3 {[%emt 0:26:41]} Rc7 {[%emt 0:00:00]} 26. Rcc1 {[%emt 0:00:00]} Rcc8 {[%emt 0:00:00]} 27. Rc3 Rc7 {[%emt 0:00:00]} 28. Rdc1 {[%emt 0:00:00]} Rcc8 {[%emt 0:00:00]} 29. Rd1 Rc7 {[%emt 0:00:00]} 30. Rdc1 {[%emt 0:00:00]} Qb4 {[%emt 0:00:00]} 31. Be3 {[%emt 0:00:00]} Rfc8 {[%emt 0:00:00]} 32. Rxc6 {[%emt 0:00:00]} Qxd2 {[%emt 0:00:00]} 33. Rxc7 {[%emt 0:00:00]} Qxa2 {[%emt 0:00:00]} 34. Rxc8+ {[%emt 0:00:00]} Kh7 {[%emt 0:00:00]} 35. Nd2 {[%emt 0:00:00]} Bd3 {[%emt 0:00:00]} 36. Bf1 {[%emt 0:00:00]} Bf5 {[%emt 0:00:00]} 37. Rxa8 {[%emt 0:06:00]} Qb2 {[%emt 0:02:10]} 38. Rcc8 {[%emt 0:00:00]} h5 {[%emt 0:02:38]} 39. Be2 {[%emt 0:00:00]} Kg6 {[%emt 0:02:36]} 40. Rh8 {[%emt 0:00:00]} Bg4 {[%emt 0:00:10]} 41. Bxg4 {[%emt 0:00:00]} hxg4 {[%emt 0:00:01]} 42. Rxa6 {[%emt 0:00:00]} a2 {[%emt 0:00:17]} 43. Rha8 {[%emt 0:00:00]} f6 {[%emt 0:00:35]} 44. exf6 {[%emt 0:00:00]} gxf6 {[%emt 0:00:05]} 45. Rxa2 {[%emt 0:00:00]} Qc1+ {[%emt 0:00:08]} 46. Kg2 {[%emt 0:00:00]} e5 {[%emt 0:00:09]} 47. dxe5 {[%emt 0:00:00]} fxe5 {[%emt 0:00:08]} 48. R2a6+ {[%emt 0:00:00]} 1-0

[Event "1st SOA-GM Festival 2024"]
[Site "Bhubaneswar"]
[Date "2024.02.01"]
[Round "4.20"]
[White "Savchenko, Boris"]
[Black "Mahindrakar Indrajeet"]
[Result "1-0"]
[WhiteElo "2489"]
[BlackElo "2039"]
[PlyCount "73"]
[EventDate "2024.02.01"]
[EventType "swiss"]
[EventCountry "IND"]
[TimeControl "5400+30"]

1. d4 {[%emt 0:02:36]} Nf6 {[%emt 0:03:33]} 2. c4 {[%emt 0:00:07]} Nc6 {[%emt 0:00:34]} 3. Nf3 {[%emt 0:00:56]} e6 {[%emt 0:00:25]} 4. Nc3 {[%emt 0:08:11]} d6 {[%emt 0:02:52]} 5. h3 {[%emt 0:06:08]} g6 {[%emt 0:01:34]} 6. e4 {[%emt 0:06:27]} Bg7 {[%emt 0:00:32]} 7. Bg5 {[%emt 0:01:13]} h6 {[%emt 0:02:03]} 8. Be3 {[%emt 0:01:40]} e5 {[%emt 0:21:17]} 9. d5 {[%emt 0:10:46]} Ne7 {[%emt 0:00:38]} 10. Qc1 {[%emt 0:07:21]} a6 {[%emt 0:20:35]} 11. Bd3 {[%emt 0:04:54]} Nh5 {[%emt 0:07:40]} 12. Bc2 {[%emt 0:06:18]} f5 {[%emt 0:03:43]} 13. exf5 {[%emt 0:00:25]} gxf5 {[%emt 0:00:53]} 14. O-O {[%emt 0:02:57]} f4 {[%emt 0:09:05]} 15. Bd2 {[%emt 0:01:07]} O-O {[%emt 0:01:56]} 16. Kh2 {[%emt 0:02:23]} Nf5 {[%emt 0:04:14]} 17. Qd1 {[%emt 0:02:30]} Qe8 {[%emt 0:02:12]} 18. Bd3 {[%emt 0:07:28]} Bd7 {[%emt 0:01:48]} 19. Ne4 {[%emt 0:01:18]} Nf6 {[%emt 0:01:41]} 20. Qe2 {[%emt 0:25:45]} Kh8 {[%emt 0:02:31]} 21. g4 {[%emt 0:00:00]} Ne7 {[%emt 0:03:24]} 22. Bc3 {[%emt 0:00:00]} Nxg4+ {[%emt 0:04:04]} 23. hxg4 {[%emt 0:00:00]} Bxg4 {[%emt 0:00:02]} 24. Rh1 {[%emt 0:00:00]} Rg8 {[%emt 0:02:02]} 25. Kg2 {[%emt 0:00:00]} Nf5 {[%emt 0:02:18]} 26. Rag1 {[%emt 0:00:00]} Qg6 {[%emt 0:01:20]} 27. Kf1 {[%emt 0:00:00]} b5 {[%emt 0:00:29]} 28. b3 {[%emt 0:00:00]} bxc4 {[%emt 0:00:08]} 29. bxc4 {[%emt 0:00:00]} Rab8 {[%emt 0:00:27]} 30. Ke1 {[%emt 0:00:00]} Bf6 {[%emt 0:00:34]} 31. Rxg4 {[%emt 0:00:00]} Qxg4 {[%emt 0:00:15]} 32. Nxf6 {[%emt 0:00:00]} Qg2 {[%emt 0:00:52]} 33. Rh2 {[%emt 0:00:00]} Qg6 {[%emt 0:00:40]} 34. Nxg8 {[%emt 0:00:00]} Kxg8 {[%emt 0:00:22]} 35. Qc2 {[%emt 0:00:00]} e4 {[%emt 0:00:29]} 36. Bxe4 {[%emt 0:00:00]} Re8 {[%emt 0:00:07]} 37. Kd2 {[%emt 0:00:00]} 1-0

[Event "1st SOA-GM Festival 2024"]
[Site "Bhubaneswar"]
[Date "2024.02.01"]
[Round "5.1"]
[White "Ayush Sharma"]
[Black "Tahbaz, Arash"]
[Result "1/2-1/2"]
[WhiteElo "2378"]
[BlackElo "2425"]
[PlyCount "86"]
[EventDate "2024.02.01"]
[EventType "swiss"]
[EventCountry "IND"]
[TimeControl "5400+30"]

1. Nf3 {[%emt 0:00:03]} c5 {[%emt 0:02:18]} 2. c4 {[%emt 0:00:41]} g6 {[%emt 0:00:28]} 3. g3 {[%emt 0:00:09]} Bg7 {[%emt 0:00:05]} 4. Bg2 {[%emt 0:00:43]} Nc6 {[%emt 0:00:04]} 5. O-O {[%emt 0:00:07]} e6 {[%emt 0:00:02]} 6. Nc3 {[%emt 0:01:34]} Nge7 {[%emt 0:02:50]} 7. e3 {[%emt 0:01:37]} O-O {[%emt 0:00:48]} 8. d4 {[%emt 0:00:04]} cxd4 {[%emt 0:00:03]} 9. Nxd4 {[%emt 0:00:18]} Nxd4 {[%emt 0:00:14]} 10. exd4 {[%emt 0:00:02]} d5 {[%emt 0:00:06]} 11. cxd5 {[%emt 0:01:27]} Nxd5 {[%emt 0:00:16]} 12. Nxd5 {[%emt 0:00:09]} exd5 {[%emt 0:00:15]} 13. Qb3 {[%emt 0:08:44]} Be6 {[%emt 0:06:47]} 14. Be3 {[%emt 0:00:52]} Qd7 {[%emt 0:01:35]} 15. a4 {[%emt 0:00:58]} Rfc8 {[%emt 0:04:43]} 16. Rfc1 {[%emt 0:01:34]} a6 {[%emt 0:08:15]} 17. h4 {[%emt 0:01:32]} h5 {[%emt 0:00:02]} 18. Rc3 {[%emt 0:05:43]} Rc6 {[%emt 0:03:52]} 19. Rxc6 {[%emt 0:00:52]} Qxc6 {[%emt 0:00:05]} 20. Rc1 {[%emt 0:00:21]} Qd7 {[%emt 0:00:04]} 21. a5 {[%emt 0:05:10]} Bf6 {[%emt 0:04:37]} 22. Qc3 {[%emt 0:05:11]} Qa4 {[%emt 0:03:54]} 23. Qa3 {[%emt 0:02:01]} Qd7 {[%emt 0:21:03]} 24. Qc5 {[%emt 0:02:14]} Qd8 {[%emt 0:03:26]} 25. Qb4 {[%emt 0:07:45]} Rc8 {[%emt 0:01:13]} 26. Rc3 {[%emt 0:03:17]} Rxc3 {[%emt 0:03:25]} 27. bxc3 {[%emt 0:00:27]} Qd7 {[%emt 0:00:11]} 28. Bg5 {[%emt 0:04:40]} Bxg5 {[%emt 0:01:32]} 29. hxg5 {[%emt 0:00:02]} Qd8 {[%emt 0:00:50]} 30. Kh2 {[%emt 0:04:16]} Qc7 {[%emt 0:03:50]} 31. f4 {[%emt 0:02:26]} Kg7 {[%emt 0:05:39]} 32. Bf3 {[%emt 0:03:31]} h4 {[%emt 0:00:56]} 33. Qc5 {[%emt 0:00:26]} hxg3+ {[%emt 0:00:05]} 34. Kxg3 {[%emt 0:00:02]} Qd8 {[%emt 0:00:08]} 35. Bg2 {[%emt 0:08:02]} Qh8 {[%emt 0:01:21]} 36. Qd6 {[%emt 0:05:06]} Qh5 {[%emt 0:00:04]} 37. Qe5+ {[%emt 0:02:23]} Kg8 {[%emt 0:13:10]} 38. Bxd5 {[%emt 0:00:34]} Qh3+ {[%emt 0:00:07]} 39. Kf2 {[%emt 0:00:01]} Bxd5 {[%emt 0:00:11]} 40. Qxd5 {[%emt 0:00:02]} Qxc3 {[%emt 0:00:12]} 41. Qd8+ {[%emt 0:07:51]} Kh7 {[%emt 0:00:05]} 42. Ke2 {[%emt 0:00:35]} Qc2+ {[%emt 0:01:13]} 43. Ke3 {[%emt 0:00:03]} Qb3+ {[%emt 0:02:56]} 1/2-1/2

[Event "1st SOA-GM Festival 2024"]
[Site "Bhubaneswar"]
[Date "2024.02.01"]
[Round "5.2"]
[White "Audi Ameya"]
[Black "Soham Kamotra"]
[Result "1/2-1/2"]
[WhiteElo "2385"]
[BlackElo "2348"]
[PlyCount "72"]
[EventDate "2024.02.01"]
[EventType "swiss"]
[EventCountry "IND"]
[TimeControl "5400+30"]

1. g3 {[%emt 0:00:02]} d5 {[%emt 0:00:55]} 2. Nf3 {[%emt 0:00:20]} Nf6 {[%emt 0:00:19]} 3. Bg2 {[%emt 0:00:14]} e6 {[%emt 1:30:46]} 4. c4 {[%emt 0:00:35]} d4 {[%emt 0:00:00]} 5. e3 {[%emt 0:01:14]} c5 {[%emt 0:00:00]} 6. O-O {[%emt 0:00:34]} Nc6 {[%emt 0:00:00]} 7. exd4 {[%emt 0:00:12]} cxd4 {[%emt 0:00:00]} 8. d3 {[%emt 0:00:04]} Bd6 {[%emt 0:00:00]} 9. Bg5 {[%emt 0:00:35]} h6 {[%emt 0:00:00]} 10. Bxf6 {[%emt 0:00:05]} Qxf6 {[%emt 0:00:00]} 11. Nbd2 {[%emt 0:00:06]} Qe7 {[%emt 0:00:00]} 12. Re1 {[%emt 0:00:33]} O-O {[%emt 0:00:00]} 13. a3 {[%emt 0:03:11]} a5 {[%emt 0:00:00]} 14. Nb3 {[%emt 0:00:17]} Rd8 {[%emt 0:00:00]} 15. Nbxd4 {[%emt 0:01:53]} Nxd4 {[%emt 0:00:00]} 16. Nxd4 {[%emt 0:00:04]} Bxg3 {[%emt 0:00:00]} 17. hxg3 {[%emt 0:03:45]} Rxd4 {[%emt 0:00:00]} 18. Re3 {[%emt 0:22:04]} a4 {[%emt 0:00:00]} 19. b4 {[%emt 0:08:14]} axb3 {[%emt 0:00:00]} 20. Qxb3 {[%emt 0:00:04]} h5 {[%emt 0:00:00]} 21. Qc3 {[%emt 0:03:35]} Qc5 {[%emt 0:00:00]} 22. a4 {[%emt 0:00:43]} Ra6 {[%emt 0:00:00]} 23. a5 {[%emt 0:10:07]} e5 {[%emt 0:00:00]} 24. Qa3 {[%emt 0:10:26]} Qc7 {[%emt 0:00:00]} 25. Qb4 {[%emt 0:02:39]} h4 {[%emt 0:00:00]} 26. Qb5 {[%emt 0:01:25]} Re6 {[%emt 0:00:00]} 27. Rae1 {[%emt 0:01:23]} Bd7 {[%emt 0:00:00]} 28. Qxb7 {[%emt 0:00:19]} Qxa5 {[%emt 0:00:00]} 29. Bd5 {[%emt 0:01:43]} Re7 {[%emt 0:00:00]} 30. Qb2 {[%emt 0:13:02]} hxg3 {[%emt 0:00:00]} 31. Qxd4 {[%emt 0:01:32]} exd4 {[%emt 0:00:00]} 32. Rxe7 {[%emt 0:00:05]} Be6 {[%emt 0:00:00]} 33. R1xe6 {[%emt 0:04:49]} gxf2+ {[%emt 0:00:00]} 34. Kxf2 {[%emt 0:00:05]} fxe6 {[%emt 0:00:00]} 35. Rxe6 {[%emt 0:00:10]} Kf8 {[%emt 0:00:00]} 36. Re2 {[%emt 0:04:17]} g5 {[%emt 0:00:00]} 1/2-1/2

[Event "1st SOA-GM Festival 2024"]
[Site "Bhubaneswar"]
[Date "2024.02.01"]
[Round "5.3"]
[White "Subhayan Kundu"]
[Black "Vignesh Advaith Vemula"]
[Result "0-1"]
[WhiteElo "2385"]
[BlackElo "2028"]
[PlyCount "68"]
[EventDate "2024.02.01"]
[EventType "swiss"]
[EventCountry "IND"]
[TimeControl "5400+30"]

1. e4 {[%emt 0:01:57]} c5 {[%emt 0:00:04]} 2. Nf3 {[%emt 0:00:18]} d6 {[%emt 0:00:05]} 3. d4 {[%emt 0:00:11]} cxd4 {[%emt 0:00:05]} 4. Nxd4 {[%emt 0:00:08]} Nf6 {[%emt 0:00:06]} 5. Nc3 {[%emt 0:00:05]} a6 {[%emt 0:00:07]} 6. f3 {[%emt 0:00:08]} e5 {[%emt 0:00:11]} 7. Nb3 {[%emt 0:00:19]} Be6 {[%emt 0:00:10]} 8. Be3 {[%emt 0:00:12]} Be7 {[%emt 0:00:08]} 9. Qd2 {[%emt 0:00:20]} Nbd7 {[%emt 0:00:12]} 10. g4 {[%emt 0:01:10]} b5 {[%emt 0:00:11]} 11. O-O-O {[%emt 0:04:04]} b4 {[%emt 0:00:06]} 12. Nd5 {[%emt 0:03:50]} Bxd5 {[%emt 0:00:07]} 13. exd5 {[%emt 0:00:02]} Nb6 {[%emt 0:00:08]} 14. Na5 {[%emt 0:02:07]} Nbxd5 {[%emt 0:00:13]} 15. Nc6 {[%emt 0:00:23]} Qc7 {[%emt 0:00:22]} 16. Nxb4 {[%emt 0:03:10]} Nxb4 {[%emt 0:00:30]} 17. Qxb4 {[%emt 0:00:07]} O-O {[%emt 0:00:05]} 18. g5 {[%emt 0:02:45]} Rfc8 {[%emt 0:00:36]} 19. Bd3 {[%emt 0:03:33]} Rab8 {[%emt 0:31:18]} 20. Qa4 {[%emt 0:02:14]} Nd7 {[%emt 0:20:06]} 21. Qe4 {[%emt 0:07:31]} g6 {[%emt 0:03:55]} 22. Bxa6 {[%emt 0:10:32]} Rb4 {[%emt 0:02:27]} 23. Qd3 {[%emt 0:00:05]} Rcb8 {[%emt 0:00:20]} 24. b3 {[%emt 0:00:29]} Nc5 {[%emt 0:00:09]} 25. Bxc5 {[%emt 0:00:59]} Qxc5 {[%emt 0:00:06]} 26. h4 {[%emt 0:10:32]} Rd4 {[%emt 0:02:11]} 27. Qe2 {[%emt 0:01:47]} Qa3+ {[%emt 0:00:13]} 28. Kb1 {[%emt 0:00:04]} Ra4 {[%emt 0:00:06]} 29. Bc4 {[%emt 0:02:28]} d5 {[%emt 0:02:19]} 30. Bxd5 {[%emt 0:08:13]} Qxa2+ {[%emt 0:00:06]} 31. Kc1 {[%emt 0:00:01]} Qa3+ {[%emt 0:00:08]} 32. Kd2 {[%emt 0:00:23]} Rd4+ {[%emt 0:00:05]} 33. Ke1 {[%emt 0:01:13]} Qa5+ {[%emt 0:00:07]} 34. c3 {[%emt 0:00:08]} Rxd5 {[%emt 0:00:09]} 0-1

[Event "1st SOA-GM Festival 2024"]
[Site "Bhubaneswar"]
[Date "2024.02.01"]
[Round "5.4"]
[White "Goutham Krishna H"]
[Black "Fawzy, Adham"]
[Result "1-0"]
[WhiteElo "2288"]
[BlackElo "2522"]
[PlyCount "95"]
[EventDate "2024.02.01"]
[EventType "swiss"]
[EventCountry "IND"]
[TimeControl "5400+30"]

1. Nf3 {[%emt 0:00:02]} Nf6 {[%emt 0:01:08]} 2. c4 {[%emt 0:00:11]} g6 {[%emt 0:00:32]} 3. Nc3 {[%emt 0:00:16]} Bg7 {[%emt 0:00:10]} 4. d4 {[%emt 0:00:23]} O-O {[%emt 0:00:43]} 5. Bf4 {[%emt 0:00:35]} c5 {[%emt 0:00:24]} 6. d5 {[%emt 0:00:19]} d6 {[%emt 0:00:41]} 7. e4 {[%emt 0:00:13]} a6 {[%emt 0:00:52]} 8. a4 {[%emt 0:00:45]} Nh5 {[%emt 0:00:10]} 9. Be3 {[%emt 0:01:04]} e6 {[%emt 0:00:26]} 10. Be2 {[%emt 0:00:27]} exd5 {[%emt 0:00:38]} 11. cxd5 {[%emt 0:01:56]} Bg4 {[%emt 0:03:59]} 12. O-O {[%emt 0:01:32]} Nd7 {[%emt 0:03:29]} 13. Re1 {[%emt 0:02:00]} Qc7 {[%emt 0:03:22]} 14. Qc2 {[%emt 0:06:03]} c4 {[%emt 0:04:18]} 15. a5 {[%emt 0:03:18]} Rac8 {[%emt 0:08:57]} 16. Ra4 {[%emt 0:05:06]} Rfe8 {[%emt 0:15:17]} 17. Rea1 {[%emt 0:12:52]} Qd8 {[%emt 0:06:39]} 18. Rb4 {[%emt 0:05:17]} f5 {[%emt 0:07:48]} 19. exf5 {[%emt 0:05:16]} Bxf5 {[%emt 0:04:58]} 20. Qd2 {[%emt 0:00:58]} Nc5 {[%emt 0:35:59]} 21. Bxc5 {[%emt 0:02:55]} Rxc5 {[%emt 0:00:00]} 22. Nd4 {[%emt 0:05:09]} Rxa5 {[%emt 0:00:00]} 23. Rd1 {[%emt 0:02:10]} Bxd4 {[%emt 0:00:00]} 24. Qxd4 {[%emt 0:00:09]} Qf6 {[%emt 0:00:00]} 25. Qxf6 {[%emt 0:01:19]} Nxf6 {[%emt 0:00:00]} 26. Rxb7 {[%emt 0:00:03]} Bc2 {[%emt 0:00:00]} 27. Rc1 {[%emt 0:00:25]} Bd3 {[%emt 0:00:00]} 28. Bf3 {[%emt 0:00:11]} g5 {[%emt 0:00:00]} 29. h3 {[%emt 0:00:47]} h5 {[%emt 0:00:00]} 30. g4 {[%emt 0:03:20]} hxg4 {[%emt 0:00:00]} 31. hxg4 {[%emt 0:00:22]} Kf8 {[%emt 0:00:00]} 32. Kg2 {[%emt 0:01:20]} Bg6 {[%emt 0:00:00]} 33. Rb6 {[%emt 0:04:32]} Ke7 {[%emt 0:00:51]} 34. Re1+ {[%emt 0:00:26]} Kd7 {[%emt 0:00:22]} 35. Rb7+ {[%emt 0:00:02]} Kd8 {[%emt 0:00:55]} 36. Rh1 {[%emt 0:02:15]} Re7 {[%emt 0:04:39]} 37. Rb6 {[%emt 0:00:08]} Ne8 {[%emt 0:00:42]} 38. Rh8 {[%emt 0:00:35]} Kd7 {[%emt 0:00:31]} 39. Rg8 {[%emt 0:00:49]} Bd3 {[%emt 0:00:00]} 40. Rb7+ {[%emt 0:00:30]} Nc7 {[%emt 0:00:36]} 41. Bd1 {[%emt 0:00:35]} Bh7 {[%emt 0:01:11]} 42. Rf8 {[%emt 0:00:23]} Be4+ {[%emt 0:00:40]} 43. Nxe4 {[%emt 0:00:16]} Rxe4 {[%emt 0:00:13]} 44. Rf7+ {[%emt 0:00:01]} Re7 {[%emt 0:00:16]} 45. Rxe7+ {[%emt 0:00:05]} Kxe7 {[%emt 0:00:05]} 46. Rxc7+ {[%emt 0:00:04]} Kf6 {[%emt 0:01:59]} 47. Bf3 {[%emt 0:00:25]} Ra4 {[%emt 0:00:00]} 48. Be2 {[%emt 0:00:06]} 1-0